bitfinex-derivatives/quotes_SOLF0:USTF0_20250731
["timestamp","ask_amount","ask_price","bid_price","bid_amount"]
[1753934426185,4.25990534,180.48,180.41,3.04182149]
[1753934426387,4.25990534,180.47,180.41,3.04182149]
[1753934426687,3.04182149,180.49,180.41,3.04182149]
[1753934426889,4.2602844,180.48,180.41,3.04182149]
[1753934427185,4.2602844,180.47,180.41,3.04182149]
[1753934427382,3.04182149,180.49,180.41,3.04182149]
[1753934427589,4.2610186,180.48,180.41,3.04182149]
[1753934427793,3.04182149,180.49,180.41,3.04182149]
[1753934427984,4.26100183,180.48,180.41,3.04182149]
[1753934428287,3.04182149,180.51,180.43,3.04182149]
[1753934428485,4.26141638,180.5,180.43,3.04182149]
[1753934428678,4.26141638,180.49,180.45,3.04182149]
[1753934428879,3.04182149,180.53,180.45,3.04182149]
[1753934429081,4.26114796,180.52,180.45,3.04182149]
[1753934429286,4.26114796,180.51,180.45,3.04182149]
[1753934429488,3.04182149,180.53,180.45,3.04182149]
[1753934429686,4.26116071,180.52,180.45,3.04182149]
[1753934429886,4.26116071,180.51,180.45,3.04182149]
[1753934430090,3.04182149,180.53,180.45,3.04182149]
[1753934430286,4.26036451,180.52,180.45,3.04182149]
[1753934430482,4.26036451,180.51,180.45,3.04182149]
[1753934430680,3.04182149,180.53,180.45,3.04182149]
[1753934430893,4.26132784,180.52,180.45,3.04182149]
[1753934431084,4.26132784,180.51,180.45,3.04182149]
[1753934431286,3.04182149,180.53,180.45,3.04182149]
[1753934431487,4.26185814,180.52,180.45,3.04182149]
[1753934431687,7.30367963,180.51,180.43,3.04182149]
[1753934431883,4.26185814,180.5,180.43,3.04182149]
[1753934434792,4.26185814,180.49,180.43,3.04182149]
[1753934434993,7.660431,180.53,180.43,3.04182149]
[1753934435195,8.88489453,180.52,180.43,3.04182149]
[1753934435494,8.88489453,180.52,180.45,3.04182149]
[1753934437195,4.26628502,180.51,180.45,3.04182149]
[1753934438197,4.26628502,180.5,180.45,3.04182149]
[1753934438396,4.26628502,180.49,180.45,3.04182149]
[1753934438594,4.26628502,180.48,180.45,3.04182149]
[1753934438897,3.04182149,180.51,180.41,3.04182149]
[1753934439097,7.660431,180.49,180.41,3.04182149]
[1753934439300,4.27503076,180.48,180.41,3.04182149]
[1753934439691,4.27503076,180.48,180.38,102.04]
[1753934439897,4.27503076,180.48,180.4,3.04182149]
[1753934440197,4.27503076,180.47,180.4,3.04182149]
[1753934440397,4.27503076,180.46,180.4,3.04182149]
[1753934440596,4.27503076,180.45,180.4,3.04182149]
[1753934440794,4.61860951,180.49,180.42,3.04182149]
[1753934440996,4.27965711,180.48,180.42,3.04182149]
[1753934441197,4.27965711,180.47,180.42,3.04182149]
[1753934441497,4.27965711,180.46,180.42,3.04182149]
[1753934441691,4.27965711,180.45,180.42,3.04182149]
[1753934441892,4.27965711,180.44,180.42,3.04182149]
[1753934442096,4.61860951,180.49,180.42,3.04182149]
[1753934442295,9.25985496,180.51,180.38,3.04182149]
[1753934442296,3.04182149,180.47,180.38,3.04182149]
[1753934442496,7.660431,180.45,180.36,3.04182149]
[1753934442697,4.2857573,180.44,180.36,3.04182149]
[1753934443003,7.32757879,180.43,180.36,3.04182149]
[1753934443202,4.2857573,180.42,180.36,3.04182149]
[1753934443404,4.2857573,180.41,180.36,3.04182149]
[1753934443593,4.2857573,180.4,180.36,3.04182149]
[1753934443891,3.04182149,180.43,180.36,3.04182149]
[1753934444199,4.2906334,180.42,180.36,3.04182149]
[1753934444404,4.2906334,180.41,180.36,3.04182149]
[1753934444601,4.2906334,180.4,180.36,3.04182149]
[1753934444903,4.2906334,180.39,180.36,3.04182149]
[1753934445103,7.660431,180.43,180.36,3.04182149]
[1753934445306,4.29376166,180.42,180.36,3.04182149]
[1753934445502,4.29376166,180.41,180.36,3.04182149]
[1753934445802,3.04182149,180.43,180.36,3.04182149]
[1753934445803,4.29376166,180.4,180.36,3.04182149]
[1753934446001,4.29376166,180.39,180.36,3.04182149]
[1753934446302,7.660431,180.43,180.36,3.04182149]
[1753934446496,4.29611922,180.42,180.36,3.04182149]
[1753934446693,4.29611922,180.41,180.36,3.04182149]
[1753934446903,4.29611922,180.4,180.36,3.04182149]
[1753934447106,4.29611922,180.39,180.36,3.04182149]
[1753934447294,7.660431,180.43,180.34,3.04182149]
[1753934447498,4.29642303,180.42,180.34,3.04182149]
[1753934447794,4.29642303,180.41,180.34,3.04182149]
[1753934447994,4.29642303,180.4,180.34,3.04182149]
[1753934448201,3.04182149,180.43,180.34,3.04182149]
[1753934448398,4.29615576,180.42,180.34,3.04182149]
[1753934448599,4.29615576,180.41,180.34,3.04182149]
[1753934448800,4.29615576,180.4,180.34,3.04182149]
[1753934449004,3.04182149,180.43,180.34,3.04182149]
[1753934449307,4.29587864,180.42,180.34,3.04182149]
[1753934449505,4.29587864,180.41,180.34,3.04182149]
[1753934449706,4.29587864,180.4,180.34,3.04182149]
[1753934449900,3.04182149,180.43,180.34,3.04182149]
[1753934450105,4.29587864,180.42,180.34,3.04182149]
[1753934450303,4.29587864,180.41,180.34,3.04182149]
[1753934450504,4.29587864,180.4,180.34,3.04182149]
[1753934450804,3.04182149,180.43,180.34,3.04182149]
[1753934450999,4.29560849,180.42,180.34,3.04182149]
[1753934451199,4.29560849,180.41,180.34,3.04182149]
[1753934451407,4.29540505,180.4,180.34,3.04182149]
[1753934451604,3.04182149,180.43,180.34,104.96182149]
[1753934451904,4.29555976,180.42,180.34,104.96182149]
[1753934452205,4.29555976,180.41,180.34,104.96182149]
[1753934452404,4.29555976,180.4,180.34,104.96182149]
[1753934452605,3.04182149,180.43,180.34,104.96182149]
[1753934452904,4.29512453,180.42,180.34,104.96182149]
[1753934453204,4.29512453,180.41,180.34,101.9]
[1753934453405,3.04182149,180.43,180.34,101.9]
[1753934453406,4.29512453,180.4,180.34,104.94182149]
[1753934453605,3.04182149,180.43,180.34,104.94182149]
[1753934453806,4.29471133,180.42,180.34,104.94182149]
[1753934454006,4.29471133,180.41,180.34,104.94182149]
[1753934454206,4.29471133,180.4,180.34,104.94182149]
[1753934454408,3.04182149,180.43,180.34,3.04182149]
[1753934454710,4.29432005,180.42,180.34,104.92182149]
[1753934454909,4.29432005,180.41,180.34,104.92182149]
[1753934455111,4.29432005,180.4,180.34,3.04182149]
[1753934455309,3.04182149,180.43,180.34,104.92182149]
[1753934455508,3.04182149,180.41,180.3,372.86]
[1753934455710,3.04182149,180.39,180.31,104.90182149]
[1753934455910,4.2941596,180.38,180.31,104.90182149]
[1753934463117,3.04182149,180.39,180.31,104.90182149]
[1753934465317,3.04182149,180.39,180.31,3.04182149]
[1753934465515,4.28859633,180.38,180.32,101.88]
[1753934465715,3.04182149,180.37,180.32,101.88]
[1753934466015,3.04182149,180.37,180.3,372.86]
[1753934466318,3.04182149,180.37,180.31,101.88]
[1753934469714,4.28620779,180.36,180.31,101.88]
[1753934469910,3.04182149,180.37,180.31,101.88]
[1753934473222,3.04182149,180.35,180.31,101.88]
[1753934477022,3.04182149,180.35,180.26,3.04182149]
[1753934477225,3.04182149,180.35,180.27,101.88]
[1753934478723,3.04182149,180.33,180.27,101.88]
[1753934485118,4.27996898,180.32,180.27,101.88]
[1753934485322,3.04182149,180.33,180.27,101.88]
[1753934485524,4.27941168,180.32,180.27,101.88]
[1753934485724,3.04182149,180.33,180.27,101.88]
[1753934485927,4.27941168,180.32,180.27,101.88]
[1753934486125,3.04182149,180.33,180.27,101.88]
[1753934486426,4.65093163,180.37,180.27,101.88]
[1753934486628,3.04182149,180.36,180.27,101.88]
[1753934486829,4.28021109,180.35,180.27,101.88]
[1753934487030,4.28021109,180.34,180.27,101.88]
[1753934487233,4.28021109,180.33,180.27,101.88]
[1753934487529,4.28021109,180.32,180.27,101.88]
[1753934487729,3.04182149,180.36,180.27,101.88]
[1753934487930,4.28146669,180.35,180.27,101.88]
[1753934488229,4.28146669,180.34,180.27,101.88]
[1753934488435,4.28146669,180.33,180.27,101.88]
[1753934488618,4.28146669,180.32,180.27,101.88]
[1753934488821,3.04182149,180.36,180.27,101.88]
[1753934489022,4.28139098,180.35,180.27,101.88]
[1753934489334,4.28139098,180.34,180.27,101.88]
[1753934489535,4.28139098,180.33,180.27,101.88]
[1753934489738,3.04182149,180.36,180.27,101.88]
[1753934489925,4.28114225,180.35,180.27,101.88]
[1753934490232,4.28114225,180.34,180.27,101.88]
[1753934490433,3.04182149,180.36,180.27,101.88]
[1753934490636,4.28158756,180.35,180.27,101.88]
[1753934490932,4.28158756,180.34,180.27,101.88]
[1753934491132,3.04182149,180.36,180.27,101.88]
[1753934491333,4.28212208,180.35,180.27,101.88]
[1753934491626,4.28212208,180.34,180.27,101.88]
[1753934491832,3.04182149,180.36,180.27,101.88]
[1753934492040,4.28212208,180.35,180.27,101.88]
[1753934492239,4.28212208,180.34,180.27,101.88]
[1753934492539,3.04182149,180.36,180.27,101.88]
[1753934492840,4.28275491,180.35,180.27,101.88]
[1753934493043,4.28275491,180.34,180.27,101.88]
[1753934493238,4.28275491,180.33,180.27,101.88]
[1753934493538,3.04182149,180.36,180.27,101.88]
[1753934493743,4.28341421,180.35,180.27,101.88]
[1753934493938,4.28341421,180.34,180.27,101.88]
[1753934494136,4.28341421,180.33,180.27,101.88]
[1753934494337,3.04182149,180.36,180.27,101.88]
[1753934494544,4.2840316,180.35,180.27,101.88]
[1753934494840,7.32585309,180.34,180.27,101.88]
[1753934495046,4.2840316,180.33,180.27,101.88]
[1753934495232,3.04182149,180.34,180.27,101.88]
[1753934495433,4.28476169,180.33,180.27,101.88]
[1753934495637,3.04182149,180.34,180.27,101.88]
[1753934495840,4.28476169,180.33,180.27,101.88]
[1753934496040,4.28476169,180.32,180.27,101.88]
[1753934496241,3.04182149,180.34,180.27,101.88]
[1753934496544,4.28558847,180.33,180.27,101.88]
[1753934496740,4.28558847,180.32,180.27,101.88]
[1753934497043,3.04182149,180.34,180.27,101.88]
[1753934497342,4.28618204,180.33,180.27,101.88]
[1753934497542,4.28618204,180.32,180.27,101.88]
[1753934497844,3.04182149,180.34,180.27,101.88]
[1753934498142,4.28618204,180.33,180.27,101.88]
[1753934498343,4.28618204,180.32,180.27,101.88]
[1753934498539,4.28618204,180.31,180.27,101.88]
[1753934498738,3.04182149,180.34,180.27,101.88]
[1753934498940,4.2870428,180.33,180.27,101.88]
[1753934499144,4.2870428,180.32,180.27,101.88]
[1753934499437,4.2870428,180.31,180.27,101.88]
[1753934499643,3.04182149,180.32,180.27,101.88]
[1753934499945,4.28797332,180.31,180.27,101.88]
[1753934500243,3.04182149,180.32,180.27,101.88]
[1753934500432,4.28883426,180.31,180.27,101.88]
[1753934500633,3.04182149,180.32,180.27,101.88]
[1753934500942,4.28883426,180.31,180.27,101.88]
[1753934501247,3.04182149,180.32,180.27,101.88]
[1753934501542,4.28898674,180.31,180.27,101.88]
[1753934501744,3.04182149,180.32,180.27,101.88]
[1753934502041,4.28898674,180.31,180.27,101.88]
[1753934502241,3.04182149,180.32,180.27,101.88]
[1753934502441,4.28227239,180.31,180.27,101.88]
[1753934502633,3.04182149,180.32,180.27,101.88]
[1753934502835,4.28227239,180.31,180.27,101.88]
[1753934503032,3.04182149,180.32,180.27,101.88]
[1753934503236,4.28275817,180.31,180.27,101.88]
[1753934503436,3.04182149,180.32,180.27,101.88]
[1753934503642,4.2827322,180.31,180.27,101.88]
[1753934503838,3.04182149,180.28,180.2,372.68]
[1753934504047,4.28290217,180.27,180.19,3.04182149]
[1753934507848,4.28290217,180.27,180.19,104.92182149]
[1753934509041,3.04182149,180.26,180.17,3.04182149]
[1753934509244,4.27956366,180.25,180.18,101.88]
[1753934509445,3.04182149,180.26,180.18,101.88]
[1753934509649,4.27956571,180.25,180.18,101.88]
[1753934509842,3.04182149,180.26,180.18,101.88]
[1753934510047,4.27956571,180.25,180.18,101.88]
[1753934510246,3.04182149,180.26,180.18,101.88]
[1753934510447,4.27909921,180.25,180.18,101.88]
[1753934510654,3.04182149,180.26,180.18,101.88]
[1753934510954,4.27925143,180.25,180.18,101.88]
[1753934511254,3.04182149,180.26,180.18,101.88]
[1753934511552,4.27844974,180.25,180.18,101.88]
[1753934511751,3.04182149,180.26,180.18,101.88]
[1753934511952,4.27844974,180.25,180.18,101.88]
[1753934512153,3.04182149,180.26,180.18,101.88]
[1753934512354,4.27797462,180.25,180.18,101.88]
[1753934512553,3.04182149,180.26,180.18,101.88]
[1753934512743,4.27797462,180.25,180.18,101.88]
[1753934512944,3.04182149,180.26,180.18,101.88]
[1753934513151,4.27797462,180.25,180.18,101.88]
[1753934513352,3.04182149,180.26,180.18,101.88]
[1753934513655,4.27757727,180.25,180.18,101.88]
[1753934513854,3.04182149,180.26,180.18,101.88]
[1753934514047,4.27757727,180.25,180.18,101.88]
[1753934514248,3.04182149,180.26,180.18,101.88]
[1753934519063,3.04182149,180.26,180.17,3.04182149]
[1753934519262,3.04182149,180.26,180.18,101.88]
[1753934519965,3.04182149,180.26,180.17,3.04182149]
[1753934520163,3.04182149,180.26,180.18,101.9]
[1753934520860,4.27654875,180.25,180.18,101.9]
[1753934521064,3.04182149,180.26,180.18,101.9]
[1753934521265,4.27684024,180.25,180.18,101.9]
[1753934521567,3.04182149,180.26,180.18,101.9]
[1753934521765,4.27641301,180.25,180.18,101.9]
[1753934521962,3.04182149,180.26,180.18,101.9]
[1753934522268,4.27626088,180.25,180.18,101.9]
[1753934522466,3.04182149,180.26,180.18,101.9]
[1753934522661,4.27609245,180.25,180.17,104.92182149]
[1753934522967,1.9513618,180.23,180.19,1.9513618]
[1753934524863,1.9513618,180.23,180.17,101.88]
[1753934525068,1.9513618,180.23,180.19,1.9513618]
[1753934525264,1.9513618,180.25,180.21,1.9513618]
[1753934530967,1.9513618,180.26,180.21,1.9513618]
[1753934536677,1.9513618,180.25,180.21,1.9513618]
[1753934542281,4.28413042,180.24,180.21,1.9513618]
[1753934542484,1.9513618,180.25,180.21,1.9513618]
[1753934542786,4.28413042,180.24,180.21,1.9513618]
[1753934542988,1.9513618,180.25,180.21,1.9513618]
[1753934543285,4.28413042,180.24,180.21,1.9513618]
[1753934543486,1.9513618,180.25,180.21,1.9513618]
[1753934543686,4.28552377,180.24,180.21,1.9513618]
[1753934543883,1.9513618,180.25,180.21,1.9513618]
[1753934544079,4.28552377,180.24,180.21,1.9513618]
[1753934544283,1.9513618,180.25,180.21,1.9513618]
[1753934544484,4.28696165,180.24,180.21,1.9513618]
[1753934544685,1.9513618,180.25,180.21,1.9513618]
[1753934544881,4.28696165,180.24,180.21,1.9513618]
[1753934545087,1.9513618,180.25,180.21,1.9513618]
[1753934545290,4.28845682,180.24,180.21,1.9513618]
[1753934545489,1.9513618,180.25,180.21,1.9513618]
[1753934545789,4.28845682,180.24,180.21,1.9513618]
[1753934545989,1.9513618,180.25,180.21,1.9513618]
[1753934546191,4.28845682,180.24,180.21,1.9513618]
[1753934546389,4.28845682,180.23,180.21,1.9513618]
[1753934546589,1.9513618,180.25,180.21,1.9513618]
[1753934546791,4.29026629,180.24,180.21,1.9513618]
[1753934546985,4.29026629,180.23,180.21,1.9513618]
[1753934547191,1.9513618,180.25,180.21,1.9513618]
[1753934547388,4.2926024,180.24,180.21,1.9513618]
[1753934547590,4.2926024,180.23,180.17,101.88]
[1753934547791,4.29265921,180.22,180.18,1.9513618]
[1753934547995,1.9513618,180.23,180.18,1.9513618]
[1753934548199,4.29290245,180.22,180.18,1.9513618]
[1753934548400,4.29290245,180.21,180.18,1.9513618]
[1753934548601,1.9513618,180.23,180.18,1.9513618]
[1753934548801,4.29625501,180.22,180.18,1.9513618]
[1753934548998,4.29625501,180.21,180.18,1.9513618]
[1753934549302,1.9513618,180.23,180.18,1.9513618]
[1753934549492,4.29639014,180.22,180.18,1.9513618]
[1753934549691,4.29639014,180.21,180.18,1.9513618]
[1753934549892,1.9513618,180.23,180.18,1.9513618]
[1753934550094,4.29639014,180.22,180.18,1.9513618]
[1753934550299,4.29639014,180.21,180.18,1.9513618]
[1753934550598,1.9513618,180.23,180.18,1.9513618]
[1753934550800,4.29657593,180.22,180.18,1.9513618]
[1753934551004,4.29657593,180.21,180.18,1.9513618]
[1753934551301,4.29676576,180.2,180.18,1.9513618]
[1753934551501,1.9513618,180.23,180.18,1.9513618]
[1753934551697,4.29676576,180.22,180.18,1.9513618]
[1753934551894,4.29676576,180.21,180.18,1.9513618]
[1753934552102,4.29676576,180.2,180.18,1.9513618]
[1753934552403,1.9513618,180.23,180.18,1.9513618]
[1753934552605,4.29668201,180.22,180.18,1.9513618]
[1753934552902,4.29668201,180.21,180.18,1.9513618]
[1753934553101,4.29668201,180.2,180.18,1.9513618]
[1753934553303,1.9513618,180.23,180.18,1.9513618]
[1753934553505,4.29645373,180.22,180.18,1.9513618]
[1753934553694,4.29645373,180.21,180.18,1.9513618]
[1753934553898,1.9513618,180.23,180.18,1.9513618]
[1753934554097,4.29645373,180.22,180.18,1.9513618]
[1753934554296,4.29645373,180.21,180.18,1.9513618]
[1753934554501,1.9513618,180.23,180.18,1.9513618]
[1753934554804,4.29618242,180.22,180.18,1.9513618]
[1753934555000,4.29618242,180.21,180.18,1.9513618]
[1753934555206,1.9513618,180.23,180.18,1.9513618]
[1753934555505,4.29594416,180.22,180.18,1.9513618]
[1753934555805,4.29594416,180.21,180.18,1.9513618]
[1753934556105,1.9513618,180.23,180.18,1.9513618]
[1753934556303,4.2957093,180.22,180.18,1.9513618]
[1753934556605,4.2957093,180.21,180.18,1.9513618]
[1753934556805,1.9513618,180.23,180.18,1.9513618]
[1753934557007,4.2957093,180.22,180.18,1.9513618]
[1753934557204,4.2957093,180.21,180.18,1.9513618]
[1753934557506,1.9513618,180.23,180.18,1.9513618]
[1753934557701,4.29549666,180.22,180.18,1.9513618]
[1753934558010,4.29549666,180.21,180.18,1.9513618]
[1753934558206,1.9513618,180.23,180.18,1.9513618]
[1753934558406,4.29530366,180.22,180.18,1.9513618]
[1753934558604,4.29530366,180.21,180.18,1.9513618]
[1753934558806,1.9513618,180.23,180.18,1.9513618]
[1753934559004,4.29536051,180.22,180.18,1.9513618]
[1753934559205,4.29536051,180.21,180.18,1.9513618]
[1753934559407,4.29536051,180.2,180.18,1.9513618]
[1753934559608,1.9513618,180.23,180.18,1.9513618]
[1753934559808,4.2949891,180.22,180.18,1.9513618]
[1753934560005,4.2949891,180.21,180.18,1.9513618]
[1753934560207,1.9513618,180.23,180.18,1.9513618]
[1753934560405,4.29487512,180.22,180.18,1.9513618]
[1753934560610,4.29487512,180.21,180.16,101.84]
[1753934560808,4.29487512,180.2,180.19,1.9513618]
[1753934561104,4.29487512,180.22,180.19,1.9513618]
[1753934561303,4.29487512,180.21,180.19,1.9513618]
[1753934561503,4.29487512,180.2,180.19,1.9513618]
[1753934562608,4.29487512,180.2,180.1,379.8]
[1753934562811,1.9513618,180.23,180.17,1.9513618]
[1753934563009,4.29344212,180.22,180.17,1.9513618]
[1753934563207,4.29344212,180.21,180.17,1.9513618]
[1753934563407,4.29344212,180.2,180.17,1.9513618]
[1753934563607,1.9513618,180.23,180.11,108.82]
[1753934563907,4.29303649,180.22,180.11,108.82]
[1753934564108,4.29303649,180.21,180.18,1.9513618]
[1753934564408,4.29303649,180.2,180.18,1.9513618]
[1753934564605,1.9513618,180.21,180.16,1.9513618]
[1753934564801,4.29268778,180.2,180.16,1.9513618]
[1753934565008,1.9513618,180.21,180.16,1.9513618]
[1753934565308,4.29268777,180.2,180.16,1.9513618]
[1753934565512,1.9513618,180.21,180.16,1.9513618]
[1753934565708,4.29240228,180.2,180.16,1.9513618]
[1753934565910,1.9513618,180.21,180.16,1.9513618]
[1753934566110,4.29240228,180.2,180.16,1.9513618]
[1753934566312,1.9513618,180.21,180.16,1.9513618]
[1753934566502,4.29215395,180.2,180.16,1.9513618]
[1753934566702,1.9513618,180.21,180.16,1.9513618]
[1753934566903,4.29206613,180.2,180.16,1.9513618]
[1753934567106,4.29206613,180.19,180.16,1.9513618]
[1753934567310,1.9513618,180.21,180.16,1.9513618]
[1753934567512,6.24287619,180.2,180.16,1.9513618]
[1753934567712,4.29151439,180.19,180.15,103.7513618]
[1753934567914,1.9513618,180.2,180.15,103.7513618]
[1753934568109,4.29151439,180.19,180.15,103.7513618]
[1753934568409,1.9513618,180.2,180.15,103.7513618]
[1753934568609,4.29091281,180.19,180.15,103.7513618]
[1753934568806,1.9513618,180.2,180.15,103.7513618]
[1753934569011,4.29091281,180.19,180.15,103.7513618]
[1753934569318,1.9513618,180.2,180.17,1.9513618]
[1753934569520,4.29037678,180.19,180.17,1.9513618]
[1753934569717,1.9513618,180.2,180.17,1.9513618]
[1753934570012,4.29037678,180.19,180.17,1.9513618]
[1753934570210,1.9513618,180.2,180.17,1.9513618]
[1753934570410,4.28989599,180.19,180.17,1.9513618]
[1753934570607,1.9513618,180.2,180.17,1.9513618]
[1753934570819,4.28989599,180.19,180.17,1.9513618]
[1753934571019,1.9513618,180.2,180.16,1.9513618]
[1753934571216,4.28989599,180.19,180.16,1.9513618]
[1753934571519,1.9513618,180.2,180.16,1.9513618]
[1753934571718,4.28953289,180.19,180.16,1.9513618]
[1753934571920,1.9513618,180.2,180.16,1.9513618]
[1753934572215,4.28953289,180.19,180.16,1.9513618]
[1753934572517,1.9513618,180.2,180.16,1.9513618]
[1753934572721,4.2892187,180.19,180.16,1.9513618]
[1753934572917,1.9513618,180.2,180.16,1.9513618]
[1753934573113,4.2892187,180.19,180.16,1.9513618]
[1753934573322,1.9513618,180.2,180.16,1.9513618]
[1753934573521,4.28890461,180.19,180.16,1.9513618]
[1753934573816,1.9513618,180.2,180.16,1.9513618]
[1753934574021,4.28890461,180.19,180.16,1.9513618]
[1753934574220,4.28874258,180.18,180.14,1.9513618]
[1753934574419,1.9513618,180.2,180.16,1.9513618]
[1753934574623,4.28841267,180.19,180.16,1.9513618]
[1753934574823,1.9513618,180.2,180.16,1.9513618]
[1753934575124,4.28841267,180.19,180.16,1.9513618]
[1753934575318,1.9513618,180.2,180.16,1.9513618]
[1753934575619,4.28793825,180.19,180.16,1.9513618]
[1753934575819,1.9513618,180.2,180.16,1.9513618]
[1753934576019,4.28793825,180.19,180.16,1.9513618]
[1753934576324,1.9513618,180.2,180.16,1.9513618]
[1753934578625,1.9513618,180.2,180.13,101.78]
[1753934578925,1.9513618,180.2,180.16,1.9513618]
[1753934579925,1.9513618,180.21,180.16,1.9513618]
[1753934580226,4.28692204,180.2,180.16,1.9513618]
[1753934580426,1.9513618,180.21,180.16,1.9513618]
[1753934580626,4.28709058,180.2,180.16,1.9513618]
[1753934580826,1.9513618,180.21,180.16,1.9513618]
[1753934581025,4.28708826,180.2,180.16,1.9513618]
[1753934581218,1.9513618,180.21,180.16,1.9513618]
[1753934581419,4.28728522,180.2,180.16,1.9513618]
[1753934581621,1.9513618,180.21,180.16,1.9513618]
[1753934581822,4.28723958,180.2,180.16,1.9513618]
[1753934582122,1.9513618,180.21,180.16,1.9513618]
[1753934582322,4.28734307,180.2,180.16,1.9513618]
[1753934582524,1.9513618,180.21,180.16,1.9513618]
[1753934582725,4.28734307,180.2,180.16,1.9513618]
[1753934582922,1.9513618,180.21,180.16,1.9513618]
[1753934583118,4.28751071,180.2,180.16,1.9513618]
[1753934583428,4.66588485,180.24,180.16,1.9513618]
[1753934583630,1.9513618,180.21,180.16,1.9513618]
[1753934583925,4.28765459,180.2,180.16,1.9513618]
[1753934584127,1.9513618,180.21,180.16,1.9513618]
[1753934584332,4.28784165,180.2,180.16,1.9513618]
[1753934584627,4.28784165,180.19,180.16,1.9513618]
[1753934584826,1.9513618,180.21,180.16,1.9513618]
[1753934585027,4.287674,180.2,180.16,1.9513618]
[1753934585225,4.287674,180.19,180.16,1.9513618]
[1753934585425,1.9513618,180.21,180.16,1.9513618]
[1753934585620,4.28790635,180.2,180.16,1.9513618]
[1753934585825,4.28790635,180.19,180.16,1.9513618]
[1753934586027,1.9513618,180.21,180.16,1.9513618]
[1753934586226,4.28791928,180.2,180.16,1.9513618]
[1753934586423,4.28791928,180.19,180.16,1.9513618]
[1753934586623,1.9513618,180.21,180.16,1.9513618]
[1753934586820,4.28818683,180.2,180.16,1.9513618]
[1753934587025,4.28818683,180.19,180.16,1.9513618]
[1753934587225,1.9513618,180.21,180.16,1.9513618]
[1753934587429,4.28868686,180.2,180.18,1.9513618]
[1753934587629,1.9513618,180.23,180.18,1.9513618]
[1753934587929,4.28871604,180.22,180.18,1.9513618]
[1753934588129,4.28871604,180.21,180.18,1.9513618]
[1753934588329,4.28871604,180.2,180.18,1.9513618]
[1753934588529,1.9513618,180.23,180.18,1.9513618]
[1753934588730,4.28916532,180.22,180.18,1.9513618]
[1753934588932,4.28916532,180.21,180.18,1.9513618]
[1753934589130,4.28916532,180.2,180.18,1.9513618]
[1753934589331,1.9513618,180.23,180.18,1.9513618]
[1753934589528,4.28968879,180.22,180.18,1.9513618]
[1753934589831,4.28968879,180.21,180.18,1.9513618]
[1753934590027,1.9513618,180.23,180.18,1.9513618]
[1753934590028,4.28968879,180.2,180.18,1.9513618]
[1753934590224,1.9513618,180.23,180.18,1.9513618]
[1753934590431,4.29026309,180.22,180.15,101.76]
[1753934590727,4.29026309,180.21,180.17,1.9513618]
[1753934590928,4.29026309,180.2,180.17,1.9513618]
[1753934591232,4.29091803,180.19,180.17,1.9513618]
[1753934591430,1.9513618,180.23,180.17,1.9513618]
[1753934591633,4.29091803,180.22,180.17,1.9513618]
[1753934591828,4.29091803,180.21,180.17,1.9513618]
[1753934592031,4.29091803,180.2,180.17,1.9513618]
[1753934592230,4.29091803,180.19,180.17,1.9513618]
[1753934592430,1.9513618,180.23,180.17,1.9513618]
[1753934592631,4.29065155,180.22,180.17,1.9513618]
[1753934592831,4.29065155,180.21,180.17,1.9513618]
[1753934593031,1.9513618,180.23,180.17,1.9513618]
[1753934593231,4.29073056,180.22,180.17,1.9513618]
[1753934593432,4.29073056,180.21,180.17,1.9513618]
[1753934593731,4.29073056,180.2,180.17,1.9513618]
[1753934593930,4.29073056,180.19,180.17,1.9513618]
[1753934594131,6.62601462,180.23,180.17,1.9513618]
[1753934594429,4.29117074,180.22,180.17,1.9513618]
[1753934594627,6.24253254,180.21,180.17,1.9513618]
[1753934594833,4.29117074,180.2,180.17,1.9513618]
[1753934595033,4.29117074,180.19,180.17,1.9513618]
[1753934595232,1.9513618,180.21,180.17,1.9513618]
[1753934595433,4.29141851,180.2,180.17,1.9513618]
[1753934595631,4.29141851,180.19,180.16,1.9513618]
[1753934595829,4.29141851,180.18,180.16,1.9513618]
[1753934596035,1.9513618,180.21,180.16,1.9513618]
[1753934596236,4.29140066,180.2,180.16,1.9513618]
[1753934596536,4.29140066,180.19,180.16,1.9513618]
[1753934596737,4.29140066,180.18,180.16,1.9513618]
[1753934597037,1.9513618,180.21,180.16,1.9513618]
[1753934597239,4.29162684,180.2,180.16,1.9513618]
[1753934597436,4.29162684,180.19,180.16,1.9513618]
[1753934597736,4.29162684,180.18,180.16,1.9513618]
[1753934598037,1.9513618,180.21,180.16,1.9513618]
[1753934598336,4.29179699,180.2,180.16,1.9513618]
[1753934598538,4.29179699,180.19,180.16,1.9513618]
[1753934598734,4.29179699,180.18,180.16,1.9513618]
[1753934598935,1.9513618,180.21,180.16,1.9513618]